fUSD/lending_fUSD_20240616
["ID","MTS","AMOUNT","RATE_DAILY","PERIOD"]
[329648808,1718541034555,-167.46,0.00018963,2]
[329648809,1718541034576,-171.73,0.00018973,2]
[329648810,1718541034600,-406.0882106,0.00019724,2]
[329648811,1718541034613,-1700.0,0.00019936,2]
[329648812,1718541034640,-500.0,0.00019936,2]
[329648813,1718541034655,-500.0,0.00019936,2]
[329648814,1718541034665,-1300.0,0.00019936,2]
[329648815,1718541034677,-226.81877563,0.000201,2]
[329648816,1718541034687,-866.04779962,0.00020483,2]
[329648817,1718541034702,-886.91046005,0.00020483,2]
[329648818,1718541034714,-158.94577288,0.00020483,2]
[329648819,1718541034741,-330.41858539,0.00020483,2]
[329648820,1718541034767,-1700.0,0.00020484,2]
[329648821,1718541034779,-1300.0,0.00020484,2]
[329648822,1718541034794,-200.0,0.00020499,2]
[329648823,1718541034806,-171.73,0.00020539,2]
[329648824,1718541034826,-1000.0,0.00020743,2]
[329648825,1718541034868,-2001.83778481,0.00020744,2]
[329648826,1718541034896,-623.24,0.00020745,2]
[329648827,1718541034910,-600.0,0.0002081,2]
[329648828,1718541034925,-153.73,0.00020929,2]
[329648829,1718541034988,-153.73,0.00020939,2]
[329648830,1718541035023,-153.73,0.00020949,2]
[329648831,1718541035103,-153.73,0.0002096,2]
[329648832,1718541035117,-153.73,0.0002097,2]
[329648833,1718541035129,-153.73,0.00020981,2]
[329648834,1718541035141,-240.48,0.0002099,3]
[329648835,1718541035154,-153.73,0.00020991,2]
[329648836,1718541035166,-732.39,0.00020992,2]
[329648837,1718541035177,-1250.0,0.00021,2]
[329648838,1718541035191,-5000.0,0.00021,2]
[329648839,1718541035203,-300.0,0.00021001,2]
[329648840,1718541035223,-153.73,0.00021002,2]
[329648841,1718541035238,-153.73,0.00021012,2]
[329648842,1718541035254,-153.73,0.00021023,2]
[329648843,1718541035268,-500.0,0.00021032,2]
[329648844,1718541035280,-500.0,0.00021032,2]
[329648845,1718541035291,-1700.0,0.00021032,2]
[329648846,1718541035306,-1300.0,0.00021032,2]
[329648847,1718541035328,-153.73,0.00021033,2]
[329648848,1718541035338,-400.0,0.00021292,2]
[329648849,1718541035350,-300.0,0.00021422,2]
[329648850,1718541035361,-1700.0,0.0002158,2]
[329648851,1718541035379,-1300.0,0.0002158,2]
[329648852,1718541035391,-300.0,0.00021703,2]
[329648853,1718541035403,-1457.17174608,0.0002186,2]
[329648854,1718541035422,-975.11313337,0.00021915,2]
[329648855,1718541035443,-296.99860786,0.00021915,2]
[329648856,1718541035459,-522.77413562,0.00021915,2]
[329648857,1718541035473,-183.51620127,0.00021915,2]
[329648858,1718541035513,-241.72145719,0.00021915,2]
[329648859,1718541035529,-543.2167885,0.00021915,2]
[329648860,1718541035540,-358.76937107,0.00021915,2]
[329648861,1718541035552,-5586.98275761,0.00021915,2]
[329648862,1718541035566,-659.46610537,0.00021915,2]
[329648863,1718541035601,-205.87398855,0.00021915,2]
[329648864,1718541035612,-206.14054789,0.00021915,2]
[329648865,1718541035624,-2696.09417701,0.00021915,2]
[329648866,1718541035637,-296.16162819,0.00021915,2]
[329648867,1718541035650,-3744.86956347,0.00021916,2]
[329648868,1718541035665,-607.42120813,0.00021917,2]
[329648869,1718541035687,-676.0,0.00021917,2]
[329648870,1718541035748,-408.72,0.00021917,2]
[329648871,1718541035784,-500.0,0.00021917,2]
[329648872,1718541035800,-500.0,0.00021917,2]
[329648873,1718541035820,-500.0,0.00021917,2]
[329648874,1718541035878,-338.72471674,0.00021917,2]
[329648875,1718541035928,-518.84947192,0.00021917,2]
[329648876,1718541035949,-500.0,0.00021917,2]
[329648877,1718541035962,-500.0,0.00021917,2]
[329648878,1718541036232,-235.12786443,0.00021917,2]
[329648879,1718541036250,-500.0,0.00021917,2]
[329648880,1718541036315,-500.0,0.00021917,2]
[329648881,1718541036326,-861.88,0.00021917,2]
[329648882,1718541036342,-500.0,0.00021917,2]
[329648883,1718541036368,-500.0,0.00021917,2]
[329648884,1718541036380,-500.0,0.00021917,2]
[329648885,1718541036401,-538.57,0.00021917,2]
[329648886,1718541036425,-500.0,0.00021917,2]
[329648887,1718541036461,-500.0,0.00021917,2]
[329648888,1718541036473,-500.0,0.00021917,2]
[329648889,1718541036489,-500.0,0.00021917,2]
[329648890,1718541036502,-500.0,0.00021917,2]
[329648891,1718541036513,-500.0,0.00021917,2]
[329648892,1718541036528,-500.0,0.00021917,2]
[329648893,1718541036541,-500.0,0.00021917,2]
[329648894,1718541036554,-500.0,0.00021917,2]
[329648895,1718541036573,-500.0,0.00021917,2]
[329648896,1718541036585,-500.0,0.00021917,2]
[329648897,1718541036600,-716.15,0.00021917,2]
[329648898,1718541036617,-500.0,0.00021917,2]
[329648899,1718541036669,-500.0,0.00021917,2]
[329648900,1718541036687,-500.0,0.00021917,2]
[329648901,1718541036702,-500.0,0.00021917,2]
[329648902,1718541036713,-500.0,0.00021917,2]
[329648903,1718541036724,-500.0,0.00021917,2]
[329648904,1718541036746,-500.0,0.00021917,2]
[329648905,1718541036759,-500.0,0.00021917,2]
[329648906,1718541036770,-500.0,0.00021917,2]
[329648907,1718541036795,-500.0,0.00021917,2]
[329648908,1718541036807,-500.0,0.00021917,2]
[329648909,1718541036825,-500.0,0.00021917,2]
[329648910,1718541036838,-500.0,0.00021917,2]
[329648911,1718541036856,-500.0,0.00021917,2]
[329648912,1718541036869,-500.0,0.00021917,2]
[329648913,1718541036883,-500.0,0.00021917,2]
[329648914,1718541036897,-500.0,0.00021917,2]
[329648915,1718541036915,-433.57675204,0.00021917,2]
[329648916,1718541036929,-500.0,0.00021917,2]
[329648917,1718541036944,-500.0,0.00021917,2]
[329648918,1718541036966,-588.14,0.00021917,2]
[329648919,1718541036981,-500.0,0.00021917,2]
[329648920,1718541037001,-500.0,0.00021917,2]
[329648921,1718541037026,-500.0,0.00021917,2]
[329648922,1718541037040,-534.55,0.00021917,2]
[329648923,1718541037068,-500.0,0.00021917,2]
[329648924,1718541037081,-500.0,0.00021917,2]
[329648925,1718541037101,-500.0,0.00021917,2]
[329648926,1718541037115,-500.0,0.00021917,2]
[329648927,1718541037129,-500.0,0.00021917,2]
[329648928,1718541037148,-500.0,0.00021917,2]
[329648929,1718541037186,-500.0,0.00021917,2]
[329648930,1718541037199,-500.0,0.00021917,2]
[329648931,1718541037212,-500.0,0.00021917,2]
[329648932,1718541037223,-500.0,0.00021917,2]
[329648933,1718541037235,-500.0,0.00021917,2]
[329648934,1718541037247,-526.79,0.00021917,2]
[329648935,1718541037258,-500.0,0.00021917,2]
[329648936,1718541037269,-500.0,0.00021917,2]
[329648937,1718541037281,-188.0,0.00021917,2]
[329648938,1718541037292,-500.0,0.00021917,2]
[329648939,1718541037311,-440.55036816,0.00021917,2]
[329648940,1718541037322,-797.3,0.00021917,2]
[329648941,1718541037385,-514.51855265,0.00021917,2]
[329648942,1718541037405,-500.0,0.00021917,2]
[329648943,1718541037417,-500.0,0.00021917,2]
[329648944,1718541037429,-508.22,0.00021917,2]
[329648945,1718541037445,-500.0,0.00021917,2]
[329648946,1718541037474,-606.83,0.00021917,2]
[329648947,1718541037501,-500.0,0.00021917,2]
[329648948,1718541037524,-500.0,0.00021917,2]
[329648949,1718541037537,-553.46,0.00021917,2]
[329648950,1718541037548,-500.0,0.00021917,2]
[329648951,1718541037596,-500.0,0.00021917,2]
[329648952,1718541037634,-500.0,0.00021917,2]
[329648953,1718541037665,-2348.54,0.00021917,2]
[329648954,1718541037677,-500.0,0.00021917,2]
[329648955,1718541037690,-500.0,0.00021917,2]
[329648956,1718541037705,-500.0,0.00021917,2]
[329648957,1718541037736,-500.0,0.00021917,2]
[329648958,1718541037757,-500.0,0.00021917,2]
[329648959,1718541037774,-500.0,0.00021917,2]
[329648961,1718541037802,-640.33,0.00021917,2]
[329648962,1718541037814,-500.0,0.00021917,2]
[329648963,1718541037829,-500.0,0.00021917,2]
[329648964,1718541037845,-500.0,0.00021917,2]
[329648965,1718541037858,-500.0,0.00021917,2]
[329648966,1718541037904,-500.0,0.00021917,2]
[329648967,1718541037937,-500.0,0.00021917,2]
[329648968,1718541037948,-500.0,0.00021917,2]
[329648969,1718541037960,-500.0,0.00021917,2]
[329648970,1718541037972,-2038.18,0.00021917,2]
[329648971,1718541038000,-500.0,0.00021917,2]
[329648972,1718541038026,-500.0,0.00021917,2]
[329648975,1718541038040,-2695.22,0.00021917,2]
[329648976,1718541038052,-500.0,0.00021917,2]
[329648977,1718541038065,-612.7,0.00021917,2]
[329648978,1718541038081,-843.8,0.00021917,2]
[329648979,1718541038092,-797.83,0.00021917,2]
[329648980,1718541038113,-500.0,0.00021917,2]
[329648981,1718541038125,-21074.5,0.00021917,2]
[329648982,1718541038138,-1432.18,0.00021917,2]
[329648983,1718541038157,-500.0,0.00021917,2]
[329648984,1718541038241,-744.1,0.00021917,2]
[329648985,1718541038257,-1003.2,0.00021917,2]
[329648986,1718541038270,-500.0,0.00021917,2]
[329648987,1718541038292,-3599.24,0.00021917,2]
[329648988,1718541038316,-500.0,0.00021917,2]
[329648989,1718541038332,-1317.78,0.00021917,2]
[329648990,1718541038360,-500.0,0.00021917,2]
[329648991,1718541038372,-500.0,0.00021917,2]
[329648992,1718541038385,-500.0,0.00021917,2]
[329648993,1718541038416,-500.0,0.00021917,2]
[329648994,1718541038442,-5052.05,0.00021917,2]
[329648995,1718541038456,-706.84,0.00021917,2]
[329648996,1718541038480,-9115.66,0.00021917,2]
[329648997,1718541038493,-679.16,0.00021917,2]
[329648998,1718541038511,-500.0,0.00021917,2]
[329648999,1718541038528,-500.0,0.00021917,2]
[329649000,1718541038552,-3378.66,0.00021917,2]
[329649001,1718541038565,-500.0,0.00021917,2]
[329649002,1718541038580,-500.0,0.00021917,2]
[329649003,1718541038592,-1127.46,0.00021917,2]
[329649004,1718541038605,-500.0,0.00021917,2]
[329649005,1718541038621,-2732.04,0.00021917,2]
[329649006,1718541038638,-500.0,0.00021917,2]
[329649007,1718541038649,-3921.7,0.00021917,2]
[329649008,1718541038662,-530.12,0.00021917,2]
[329649009,1718541038675,-734.21,0.00021917,2]
[329649010,1718541038697,-1218.42,0.00021917,2]
[329649011,1718541038709,-500.0,0.00021917,2]
[329649012,1718541038720,-500.0,0.00021917,2]
[329649013,1718541038736,-517.21,0.00021917,2]
[329649014,1718541038756,-603.24,0.00021917,2]
[329649015,1718541038774,-2181.13,0.00021917,2]
[329649016,1718541038801,-500.0,0.00021917,2]
[329649017,1718541038817,-674.22,0.00021917,2]
[329649018,1718541038829,-500.0,0.00021917,2]
[329649019,1718541038844,-1943.07,0.00021917,2]
[329649020,1718541038870,-712.83,0.00021917,2]
[329649021,1718541038887,-1219.05,0.00021917,2]
[329649022,1718541038898,-576.89,0.00021917,2]
[329649023,1718541038914,-1141.58,0.00021917,2]
[329649024,1718541038926,-500.0,0.00021917,2]
[329649025,1718541038936,-2157.33,0.00021917,2]
[329649026,1718541038947,-500.0,0.00021917,2]
[329649027,1718541038958,-534.98,0.00021917,2]
[329649028,1718541038968,-718.05,0.00021917,2]
[329649029,1718541038983,-1503.53,0.00021917,2]
[329649030,1718541038998,-556.93,0.00021917,2]
[329649031,1718541039010,-1865.04,0.00021917,2]
[329649032,1718541039025,-834.2,0.00021917,2]
[329649033,1718541039038,-1082.64,0.00021917,2]
[329649034,1718541039058,-500.0,0.00021917,2]
[329649035,1718541039073,-2080.6,0.00021917,2]
[329649036,1718541039093,-806.62,0.00021917,2]
[329649037,1718541039136,-500.0,0.00021917,2]
[329649038,1718541039201,-1262.11,0.00021917,2]
[329649039,1718541039240,-2011.52,0.00021917,2]
[329649040,1718541039257,-1520.87,0.00021917,2]
[329649041,1718541039272,-1055.09,0.00021917,2]
[329649042,1718541039288,-753.63,0.00021917,2]
[329649043,1718541039300,-840.68,0.00021917,2]
[329649044,1718541039328,-553.85,0.00021917,2]
[329649045,1718541039363,-522.44,0.00021917,2]
[329649046,1718541039404,-2000.1,0.00021917,2]
[329649047,1718541039441,-813.26,0.00021917,2]
[329649048,1718541039480,-500.0,0.00021917,2]
[329649049,1718541039557,-500.0,0.00021917,2]
[329649050,1718541039569,-500.0,0.00021917,2]
[329649051,1718541039646,-853.1,0.00021917,2]
[329649052,1718541039685,-1275.85,0.00021917,2]
[329649053,1718541039733,-759.95,0.00021917,2]
[329649054,1718541039813,-944.04,0.00021917,2]
[329649055,1718541039857,-500.0,0.00021917,2]
[329649056,1718541039930,-1253.06,0.00021917,2]
[329649057,1718541039945,-3040.89,0.00021917,2]
[329649058,1718541039967,-500.0,0.00021917,2]
[329649059,1718541039998,-500.0,0.00021917,2]
[329649060,1718541040040,-534.48,0.00021917,2]
[329649061,1718541040059,-2379.38,0.00021917,2]
[329649062,1718541040076,-594.17,0.00021917,2]
[329649064,1718541040095,-2395.2,0.00021917,2]
[329649066,1718541040147,-1197.62,0.00021917,2]
[329649067,1718541040200,-500.0,0.00021917,2]
[329649068,1718541040219,-1062.1,0.00021917,2]
[329649069,1718541040248,-500.0,0.00021917,2]
[329649070,1718541040265,-500.0,0.00021917,2]
[329649071,1718541040303,-500.0,0.00021917,2]
[329649072,1718541040326,-500.0,0.00021917,2]
[329649073,1718541040355,-500.0,0.00021917,2]
[329649074,1718541040385,-2099.55,0.00021917,2]
[329649075,1718541040396,-620.4,0.00021917,2]
[329649076,1718541040420,-861.57,0.00021917,2]
[329649077,1718541040436,-500.0,0.00021917,2]
[329649078,1718541040450,-783.39,0.00021917,2]
[329649079,1718541040470,-1665.96,0.00021917,2]
[329649080,1718541040485,-500.0,0.00021917,2]
[329649081,1718541040516,-1511.29,0.00021917,2]
[329649082,1718541040527,-500.0,0.00021917,2]
[329649083,1718541040562,-4408.8,0.00021917,2]
[329649084,1718541040574,-549.16,0.00021917,2]
[329649085,1718541040593,-1015.52,0.00021917,2]
[329649086,1718541040621,-711.61,0.00021917,2]
[329649087,1718541040638,-500.0,0.00021917,2]
[329649088,1718541040666,-760.88,0.00021917,2]
[329649090,1718541040692,-500.0,0.00021917,2]
[329649092,1718541040719,-2985.82,0.00021917,2]
[329649093,1718541040746,-722.36,0.00021917,2]
[329649094,1718541040761,-620.66,0.00021917,2]
[329649095,1718541040772,-1310.33,0.00021917,2]
[329649096,1718541040803,-1128.27,0.00021917,2]
[329649097,1718541040817,-676.84,0.00021917,2]
[329649098,1718541040846,-1725.15,0.00021917,2]
[329649099,1718541040857,-636.9,0.00021917,2]
[329649100,1718541040870,-1331.36,0.00021917,2]
[329649101,1718541040897,-1553.5,0.00021917,2]
[329649102,1718541040910,-1295.17,0.00021917,2]
[329649103,1718541040926,-500.0,0.00021917,2]
[329649104,1718541040936,-6609.5,0.00021917,2]
[329649105,1718541040953,-992.06,0.00021917,2]
[329649106,1718541040965,-500.0,0.00021917,2]
[329649107,1718541040977,-580.06,0.00021917,2]
[329649108,1718541041001,-500.0,0.00021917,2]
[329649109,1718541041025,-4404.42,0.00021917,2]
[329649110,1718541041082,-3946.65,0.00021917,2]
[329649111,1718541041105,-500.0,0.00021917,2]
[329649112,1718541041155,-366.33954861,0.00021917,2]
[329649113,1718541041460,-133.66045139,0.00021917,2]
[329649114,1718541041477,-500.0,0.00021917,2]
[329649115,1718541041501,-592.93,0.00021917,2]
[329649116,1718541041530,-1125.0,0.00021917,2]
[329649117,1718541041545,-500.0,0.00021917,2]
[329649118,1718541041569,-502.60743236,0.00021917,2]
[329649119,1718541041580,-825.9,0.00021917,2]
[329649120,1718541041592,-2364.45,0.00021917,2]
[329649121,1718541041605,-319.622052,0.00021917,2]
[329649122,1718541041622,-154.53,0.00021918,2]
[329649123,1718541041665,-250.0,0.00021918,2]
[329649124,1718541041696,-417.24,0.00021918,2]
[329649125,1718541041708,-3728.264,0.00021927,2]
[329649126,1718541041756,-300.0,0.00021985,2]
[329649127,1718541041782,-715.74130665,0.00022091,2]
[329649128,1718541041909,-5377.25719165,0.00022091,2]
[329649129,1718541041923,-1035.17422718,0.00022091,2]
[329649139,1718541043327,-2409.0,0.00016791,2]
[329649140,1718541043343,-500.0,0.00021917,2]
[329649141,1718541043395,-2871.82727452,0.00022091,2]
[329649142,1718541043417,-344.20219896,0.00022091,2]
[329649143,1718541043443,-171.73,0.00022104,2]
[329649144,1718541043464,-500.0,0.00022128,2]
[329649145,1718541043483,-500.0,0.00022128,2]
[329649146,1718541043502,-1700.0,0.00022128,2]
[329649147,1718541043518,-1300.0,0.00022128,2]
[329649148,1718541043532,-2876.7221975,0.0002219,2]
[329649149,1718541043548,-500.0,0.0002219,2]
[329649150,1718541043571,-513.17349062,0.0002219,2]
[329649151,1718541043583,-583.25837528,0.0002219,2]
[329649152,1718541043595,-500.0,0.00022191,3]
[329649153,1718541043615,-500.0,0.00022191,3]
[329649154,1718541043626,-500.0,0.00022191,3]
[329649155,1718541043638,-500.0,0.00022191,3]
[329649156,1718541043651,-500.0,0.00022191,3]
[329649157,1718541043677,-861.88,0.00022191,3]
[329649158,1718541043717,-500.0,0.00022191,3]
[329649161,1718541043742,-630.4780353,0.00022191,3]
[329649162,1718541043755,-253.08,0.00022191,3]
[329649163,1718541043781,-538.57,0.00022191,3]
[329649164,1718541043793,-500.0,0.00022191,3]
[329649165,1718541043805,-500.0,0.00022191,3]
[329649166,1718541043820,-500.0,0.00022191,3]
[329649167,1718541043831,-500.0,0.00022191,3]
[329649168,1718541043844,-500.0,0.00022191,3]
[329649169,1718541043874,-500.0,0.00022191,3]
[329649170,1718541043893,-500.0,0.00022191,3]
[329649171,1718541043922,-500.0,0.00022191,3]
[329649172,1718541043939,-500.0,0.00022191,3]
[329649173,1718541043963,-280.25989565,0.00022191,3]
[329649174,1718541043977,-500.0,0.00022191,3]
[329649175,1718541043992,-716.15,0.00022191,3]
[329649176,1718541044008,-357.80482735,0.00022191,3]
[329649178,1718541044211,-142.19517265,0.00022191,3]
[329649179,1718541044240,-500.0,0.00022191,3]
[329649180,1718541044255,-500.0,0.00022191,3]
[329649181,1718541044284,-544.22178318,0.00022191,3]
[329649182,1718541044294,-500.0,0.00022191,3]
[329649183,1718541044313,-500.0,0.00022191,3]
[329649184,1718541044333,-500.0,0.00022191,3]
[329649185,1718541044374,-500.0,0.00022191,3]
[329649186,1718541044399,-500.0,0.00022191,3]
[329649187,1718541044459,-500.0,0.00022191,3]
[329649188,1718541044504,-500.0,0.00022191,3]
[329649189,1718541044564,-500.0,0.00022191,3]
[329649190,1718541044590,-589.68155873,0.00022191,3]
[329649191,1718541044612,-393.91066918,0.00022191,3]
[329649192,1718541044653,-106.08933082,0.00022191,3]
[329649193,1718541044673,-213.71066918,0.00022191,3]
[329649194,1718541044805,-286.28933082,0.00022191,3]
[329649195,1718541044815,-330.1097039,0.00022191,3]
[329649196,1718541044826,-500.0,0.00022191,3]
[329649197,1718541044848,-387.79870678,0.00022191,3]
[329649198,1718541044860,-588.14,0.00022191,3]
[329649199,1718541044899,-500.0,0.00022191,3]
[329649200,1718541044910,-500.0,0.00022191,3]
[329649201,1718541044927,-534.55,0.00022191,3]
[329649202,1718541044948,-500.0,0.00022191,3]
[329649203,1718541044961,-500.0,0.00022191,3]
[329649204,1718541044976,-500.0,0.00022191,3]
[329649205,1718541044998,-500.0,0.00022191,3]
[329649206,1718541045015,-500.0,0.00022191,3]
[329649207,1718541045033,-500.0,0.00022191,3]
[329649208,1718541045048,-500.0,0.00022191,3]
[329649209,1718541045080,-302.15543282,0.00022191,3]
[329649210,1718541045093,-500.0,0.00022191,3]
[329649211,1718541045122,-500.0,0.00022191,3]
[329649212,1718541045140,-500.0,0.00022191,3]
[329649213,1718541045151,-500.0,0.00022191,3]
[329649214,1718541045163,-526.79,0.00022191,3]
[329649215,1718541045175,-500.0,0.00022191,3]
[329649216,1718541045186,-349.66090011,0.00022191,3]
[329649217,1718541045199,-188.0,0.00022191,3]
[329649218,1718541045211,-500.0,0.00022191,3]
[329649219,1718541045236,-797.3,0.00022191,3]
[329649220,1718541045288,-500.0,0.00022191,3]
[329649221,1718541045300,-416.7251476,0.00022191,3]
[329649222,1718541045311,-508.22,0.00022191,3]
[329649223,1718541045360,-500.0,0.00022191,3]
[329649224,1718541045396,-606.83,0.00022191,3]
[329649225,1718541045412,-500.0,0.00022191,3]
[329649226,1718541045432,-500.0,0.00022191,3]
[329649227,1718541045442,-553.46,0.00022191,3]
[329649228,1718541045465,-500.0,0.00022191,3]
[329649229,1718541045485,-500.0,0.00022191,3]
[329649230,1718541045497,-500.0,0.00022191,3]
[329649231,1718541045508,-500.0,0.00022191,3]
[329649232,1718541045518,-2348.54,0.00022191,3]
[329649233,1718541045550,-500.0,0.00022191,3]
[329649234,1718541045573,-12.28215237,0.00022191,3]
[329649235,1718541045663,-240.19577919,0.00022191,3]
[329649236,1718541045686,-500.0,0.00022191,3]
[329649237,1718541045713,-500.0,0.00022191,3]
[329649238,1718541045737,-500.0,0.00022191,3]
[329649239,1718541045770,-640.33,0.00022191,3]
[329649240,1718541045797,-500.0,0.00022191,3]
[329649241,1718541045810,-500.0,0.00022191,3]
[329649242,1718541045832,-394.10730771,0.00022191,3]
[329649243,1718541045856,-500.0,0.00022191,3]
[329649244,1718541045881,-500.0,0.00022191,3]
[329649245,1718541045895,-500.0,0.00022191,3]
[329649246,1718541045908,-500.0,0.00022191,3]
[329649247,1718541045933,-2038.18,0.00022191,3]
[329649248,1718541045959,-500.0,0.00022191,3]
[329649249,1718541045986,-500.0,0.00022191,3]
[329649250,1718541046000,-500.0,0.00022191,3]
[329649251,1718541046012,-2695.22,0.00022191,3]
[329649252,1718541046023,-612.7,0.00022191,3]
[329649253,1718541046048,-797.83,0.00022191,3]
[329649254,1718541046058,-843.8,0.00022191,3]
[329649255,1718541046069,-500.0,0.00022191,3]
[329649256,1718541046114,-1432.18,0.00022191,3]
[329649257,1718541046142,-287.16822416,0.00022191,3]
[329649258,1718541046154,-744.1,0.00022191,3]
[329649259,1718541046186,-1003.2,0.00022191,3]
[329649260,1718541046235,-500.0,0.00022191,3]
[329649261,1718541046249,-219.20548857,0.00022191,3]
[329649262,1718541046276,-3380.03451143,0.00022191,3]
[329649263,1718541046295,-500.0,0.00022191,3]
[329649264,1718541046327,-1317.78,0.00022191,3]
[329649265,1718541046348,-500.0,0.00022191,3]
[329649266,1718541046362,-500.0,0.00022191,3]
[329649267,1718541046373,-500.0,0.00022191,3]
[329649268,1718541046388,-865.43957853,0.00022191,3]
[329649269,1718541046420,-4186.61042147,0.00022191,3]
[329649270,1718541046432,-706.84,0.00022191,3]
[329649271,1718541046463,-500.0,0.00022191,3]
[329649272,1718541046475,-9115.66,0.00022191,3]
[329649273,1718541046488,-679.16,0.00022191,3]
[329649274,1718541046508,-500.0,0.00022191,3]
[329649275,1718541046520,-500.0,0.00022191,3]
[329649276,1718541046532,-3378.66,0.00022191,3]
[329649277,1718541046562,-500.0,0.00022191,3]
[329649278,1718541046578,-500.0,0.00022191,3]
[329649279,1718541046610,-1127.46,0.00022191,3]
[329649280,1718541046630,-500.0,0.00022191,3]
[329649281,1718541046643,-2732.04,0.00022191,3]
[329649282,1718541046686,-500.0,0.00022191,3]
[329649283,1718541046698,-3921.7,0.00022191,3]
[329649284,1718541046711,-530.12,0.00022191,3]
[329649285,1718541046723,-734.21,0.00022191,3]
[329649286,1718541046739,-1218.42,0.00022191,3]
[329649287,1718541046754,-500.0,0.00022191,3]
[329649288,1718541046773,-500.0,0.00022191,3]
[329649289,1718541046784,-517.21,0.00022191,3]
[329649291,1718541046796,-603.24,0.00022191,3]
[329649293,1718541046818,-2181.13,0.00022191,3]
[329649295,1718541046837,-172.48885064,0.00022191,3]
[329649297,1718541046857,-674.22,0.00022191,3]
[329649299,1718541046880,-500.0,0.00022191,3]
[329649304,1718541046929,-1943.07,0.00022191,3]
[329649305,1718541046979,-712.83,0.00022191,3]
[329649306,1718541046993,-1219.05,0.00022191,3]
[329649307,1718541047022,-93.90742945,0.00022191,3]
[329649308,1718541047049,-367.18970664,0.00022191,3]
[329649309,1718541047073,-115.79286391,0.00022191,3]
[329649310,1718541047091,-1141.58,0.00022191,3]
[329649311,1718541047107,-500.0,0.00022191,3]
[329649312,1718541047121,-500.0,0.00022191,3]
[329649313,1718541047132,-2157.33,0.00022191,3]
[329649314,1718541047144,-534.98,0.00022191,3]
[329649315,1718541047154,-718.05,0.00022191,3]
[329649316,1718541047167,-1503.53,0.00022191,3]
[329649317,1718541047178,-556.93,0.00022191,3]
[329649318,1718541047196,-1865.04,0.00022191,3]
[329649319,1718541047255,-834.2,0.00022191,3]
[329649320,1718541047278,-551.02137837,0.00022191,3]
[329649321,1718541047337,-531.61862163,0.00022191,3]
[329649322,1718541047349,-500.0,0.00022191,3]
[329649323,1718541047369,-84.30703429,0.00022191,3]
[329649339,1718541048213,-722.31296571,0.00022191,3]
[329649341,1718541048228,-2080.6,0.00022191,3]
[329649343,1718541048240,-500.0,0.00022191,3]
[329649346,1718541048264,-1262.11,0.00022191,3]
[329649347,1718541048275,-2011.52,0.00022191,3]
[329649349,1718541048290,-377.75703429,0.00022191,3]
[329649351,1718541048381,-1143.11296571,0.00022191,3]
[329649352,1718541048393,-753.63,0.00022191,3]
[329649354,1718541048411,-1055.09,0.00022191,3]
[329649356,1718541048425,-840.68,0.00022191,3]
[329649358,1718541048438,-553.85,0.00022191,3]
[329649361,1718541048466,-522.44,0.00022191,3]